Cogmind - Beta 13 @@@ ROGUE MODE // 2024.05.27 @ 00:56:55 Player: karotgaemin Result: Self-destructed Performance ------------- Evolutions (1) 500 Regions Visited (3) 600 Robots Destroyed (36) 180 Value Destroyed (878) 878 Prototype IDs (0) 0 Alien Tech Used (0) 0 Bonus (11) 11 TOTAL SCORE: 2169 Bonus ------- High Alert Combat Kills 11 Cogmind --------- Core Integrity 211/400 Matter 101/300 Energy 142/250 System Corruption 0% Temperature Cool (0) Movement Walking (260) Ox2 Location -9/Materials Parts ------- > --- POWER (1) -------- Ion Engine > --- PROPULSION (2) --- Aluminum Leg > --- UTILITY (4) ------ Heat Sink Large Storage Unit Visual Processing Unit > --- WEAPON (2) ------- Light Assault Rifle > --- INVENTORY (15) --- Light Treads Aluminum Leg Heat Sink Visual Processing Unit Light Assault Rifle Peak State ------------ > --- POWER ------------ Light Nuclear Core > --- PROPULSION ------- Aluminum Leg Aluminum Leg > --- UTILITY ---------- Heat Sink Large Storage Unit Visual Processing Unit > --- WEAPON ----------- Particle Gun Rocket Launcher > --- INVENTORY -------- Ion Engine Light Treads Aluminum Leg Heat Sink Visual Processing Unit Assault Rifle Light Assault Rifle Light Assault Rifle Heavy Assault Rifle [Rating: 14] Favorites ----------- Power Ion Engine Engine Ion Engine Power Core Light Nuclear Core Propulsion Aluminum Leg Treads Light Treads Leg Aluminum Leg Wheel Wheel Utility Visual Processing Unit Device Heat Sink Storage Large Storage Unit Processor Visual Processing Unit Weapon Light Assault Rifle Energy Gun Particle Gun Ballistic Gun Light Assault Rifle Launcher Grenade Launcher Build | -11 -10 -10 -9 ------- Run | Yrd Mat Min Mat Slots Evolved 2 | . . . 2 Power . | . . . . Propulsion . | . . . . Utility 2 | . . . 2 Weapon . | . . . . Parts Attached 35 | 7 13 3 12 Power 7 | 2 2 1 2 Engine 6 | 2 2 1 1 Core 1 | . . . 1 Reactor . | . . . . Propulsion 8 | 2 4 . 2 Treads 2 | . 2 . . Leg 4 | . 2 . 2 Wheel 2 | 2 . . . Hover . | . . . . Flight . | . . . . Utility 4 | 1 2 . 1 Device 1 | . . . 1 Storage 2 | 1 1 . . Processor 1 | . 1 . . Hackware . | . . . . Protection . | . . . . Artifact . | . . . . Weapon 16 | 2 5 2 7 Energy Gun 1 | . . . 1 Energy Cannon . | . . . . Ballistic Gun 10 | 2 2 2 4 Ballistic Cannon . | . . . . Launcher 5 | . 3 . 2 Special Weapon . | . . . . Impact Weapon . | . . . . Slashing Weapon . | . . . . Piercing Weapon . | . . . . Special Melee Weapon . | . . . . Unidentified Prototypes . | . . . . Parts Lost 13 | . 5 2 6 Power 3 | . 1 1 1 Propulsion 4 | . 3 . 1 Utility . | . . . . Weapon 6 | . 1 1 4 Highest Loss Streak 6 | . 3 1 6 To Critical Strikes . | . . . . Average Slot Usage (%) 93 | . 96 98 80 Engine 11 | . 14 12 6 Core 1 | . . . 4 Treads 3 | . 14 . . Leg 19 | . 2 28 21 Wheel 2 | . 8 . . Device 1 | . . . 5 Storage 13 | . 14 14 11 Processor 13 | . 13 14 11 Energy Gun 1 | . . . 4 Ballistic Gun 16 | . 25 16 8 Launcher 8 | . 2 11 8 Naked Turns . | . . . . Heaviest Build 33 | 13 29 30 33 Greatest Support 40 | 26 40 20 20 Greatest Overweight (x) 2 | 1 2 1 2 Average Overweight (x) . | . . 1 1 Largest Inventory Capacity 15 | 8 15 15 15 Average Capacity 14 | 6 14 15 15 Most Carried 10 | 6 9 6 10 Average Carried 5 | 3 6 5 6 Final Capacity 15 | 8 15 15 15 Final Carried 6 | 6 6 4 5 Class Distribution -------------------- 89% | Mutant 10% | Scavenger-Mutant Dominant Class ---------------- Mutant | -10/Materials Mutant | -10/Mines Mutant | -9/Materials Resources | -11 -10 -10 -9 ----------- Run | Yrd Mat Min Mat Matter Collected 655 | 180 297 132 46 Remotely . | . . . . Salvage Created 709 | . 414 87 208 Parts 61 | . 28 12 21 Haulers Intercepted . | . . . . Recyclers Shooed . | . . . . Parts Field Recycled . | . . . . Retrieved Matter . | . . . . Parts Self-Destructed . | . . . . Prevented . | . . . . Kills | -11 -10 -10 -9 ------- Run | Yrd Mat Min Mat Combat Hostiles Destroyed 29 | . 11 8 10 Guns 11 | . 8 2 1 AOE 18 | . 3 6 9 Classes Destroyed 8 | . 4 2 2 Worker 2 | . 2 . . Builder 3 | . 1 . 2 Tunneler 1 | . . 1 . Watcher 1 | . 1 . . Swarmer 11 | . . 8 3 Grunt 16 | . 11 . 5 Duelist 1 | . . . 1 Sentry 1 | . . . 1 Best Kill Streak 10 | . 10 4 5 Combat Bots Only 6 | . 6 3 4 Max Kills in Single Turn 4 | . 1 4 4 Gunslinging . | . . . . Exploded 3 | . 1 3 3 Melee . | . . . . Uniques/NPCs Destroyed . | . . . . Combat | -11 -10 -10 -9 -------- Run | Yrd Mat Min Mat Hostile Shots Fired 166 | . 71 31 64 Missed 57 | . 27 7 23 Damage Taken 1598 | . 657 262 679 Core 348 | . 98 61 189 Absorbed by Shields . | . . . . Core Remaining (%) 68 | 100 . 36 . Volleys Fired 76 | . 42 8 26 Largest 2 | . 2 2 2 Hottest 98 | . 60 50 98 Shots Fired 133 | . 84 14 35 Gun 114 | . 75 11 28 Cannon . | . . . . Launcher 19 | . 9 3 7 Special . | . . . . Kinetic 106 | . 75 11 20 Thermal 8 | . . . 8 Explosive 19 | . 9 3 7 Electromagnetic . | . . . . Robot Hit Streak 8 | . 8 6 8 Robot Miss Streak 4 | . 4 2 4 Penetration Max . | . . . . Secondary Targets . | . . . . Shots Hit Robots 77 | . 50 8 19 Core Hits 66 | . 36 10 20 Critical Kills 1 | . 1 . . Critical Parts Destroyed . | . . . . Critical Strikes 1 | . 1 . . Destroy 1 | . 1 . . Melee Attacks . | . . . . Impact . | . . . . Slashing . | . . . . Piercing . | . . . . Sneak Attacks . | . . . . Combat Hostiles . | . . . . Follow-up Attacks . | . . . . Damage Inflicted 2359 | . 902 443 1014 Guns 771 | . 455 59 257 Cannons . | . . . . Explosions 1588 | . 447 384 757 Melee . | . . . . Ramming . | . . . . Kinetic 722 | . 455 59 208 Thermal 155 | . 56 50 49 Explosive 1482 | . 391 334 757 Electromagnetic . | . . . . Impact . | . . . . Slashing . | . . . . Piercing . | . . . . Highest Corruption . | . . . . Average Corruption . | . . . . Corruption Purged . | . . . . Corruption Blocked . | . . . . Overload Shots . | . . . . Overflow Damage 124 | . 38 75 11 Projectiles . | . . . . Explosions 124 | . 38 75 11 Melee . | . . . . Knockbacks . | . . . . Impact . | . . . . Kinetic . | . . . . Secondary . | . . . . Self-Inflicted Damage 233 | . 63 86 84 Shots 8 | . 3 2 3 Rammed . | . . . . Targets Rammed . | . . . . Kicked . | . . . . Crushed . | . . . . Highest Temperature 38 | . 38 12 15 Average Temperature 10 | . 11 12 4 Received Heat Transfer 522 | . 330 . 192 Siege Activations . | . . . . Robots Corrupted . | . . . . Combat Hostiles . | . . . . Parts Fried . | . . . . Impact Corruptions . | . . . . Robots Melted . | . . . . Combat Hostiles . | . . . . Parts Melted 1 | . . 1 . Heat Transferred 211 | . 50 50 111 Parts Sabotaged . | . . . . Parts Stolen . | . . . . Parts Stripped . | . . . . Power Chain Reactions . | . . . . Alert | -11 -10 -10 -9 ------- Run | Yrd Mat Min Mat Peak Influence 448 | . 448 269 358 Initial 96 | . . 96 48 Average 141 | . 160 142 144 Maximum Alert Level 2 | . 2 1 1 Low Security (%) 78 | 100 75 75 84 Level 1 18 | . 14 24 15 Level 2 2 | . 10 . . Level 3 . | . . . . Level 4 . | . . . . Level 5 . | . . . . High Security . | . . . . Max Security . | . . . . Squads Dispatched 5 | . 2 . 3 Investigation 2 | . 2 . . Extermination . | . . . . Reinforcement 3 | . . . 3 Assault . | . . . . Garrison . | . . . . Intercept . | . . . . Searches Triggered . | . . . . Construction Impeded 1 | . . . 1 Haulers Reinforced . | . . . . Active Scanning Responses . | . . . . Cargo Convoy Interrupts . | . . . . Stealth | -11 -10 -10 -9 --------- Run | Yrd Mat Min Mat Distress Signals 6 | . 2 . 4 Communications Jammed . | . . . . Distress Signals . | . . . . Times Spotted 49 | . 21 10 18 Peak Tracking Total 10 | . 7 3 10 Tactical Retreats 5 | . 2 1 2 Traps | -11 -10 -10 -9 ------- Run | Yrd Mat Min Mat Traps Triggered 2 | . 2 . . Indirectly . | . . . . Trap Hack Attempts . | . . . . Triggered . | . . . . Disarmed . | . . . . Reprogrammed . | . . . . Reused . | . . . . Traps Extracted . | . . . . Installed . | . . . . Triggered . | . . . . Machines | -11 -10 -10 -9 ---------- Run | Yrd Mat Min Mat Machines Disabled 4 | . 2 1 1 Max in Single Turn 1 | . 1 1 1 Machines Repaired . | . . . . Machines Dismantled . | . . . . Machines Sabotaged . | . . . . Overloaded Fab Kills . | . . . . Hacking | -11 -10 -10 -9 --------- Run | Yrd Mat Min Mat Machines Accessed . | . . . . Terminals . | . . . . Fabricators . | . . . . Repair Stations . | . . . . Recycling Units . | . . . . Scanalyzers . | . . . . Garrison Access . | . . . . Total Hacks . | . . . . Successful . | . . . . Failed . | . . . . Catastrophic . | . . . . Database Lockouts . | . . . . Manual . | . . . . Terminals . | . . . . Fabricators . | . . . . Repair Stations . | . . . . Recycling Units . | . . . . Scanalyzers . | . . . . Garrison Access . | . . . . Terminal Hacks . | . . . . Fabricator Hacks . | . . . . Repair Station Hacks . | . . . . Recycling Unit Hacks . | . . . . Scanalyzer . | . . . . Garrison Access Hacks . | . . . . Unauthorized Hacks . | . . . . Terminals . | . . . . Fabricators . | . . . . Repair Stations . | . . . . Recycling Units . | . . . . Scanalyzers . | . . . . Garrison Access . | . . . . Data Cores Recovered . | . . . . Used . | . . . . Hacking Detections . | . . . . Full Trace Events . | . . . . Feedback Events . | . . . . Feedback Blocked . | . . . . Robot Schematics Acquired . | . . . . Robots Built . | . . . . Authchips . | . . . . Time . | . . . . Total Robot Build Rating . | . . . . Part Schematics Acquired . | . . . . Parts Built . | . . . . Authchips . | . . . . Time . | . . . . Total Part Build Rating . | . . . . Parts Repaired . | . . . . Time . | . . . . Parts Recycled . | . . . . Recycled Matter . | . . . . Retrieved Matter . | . . . . Retrieved Components . | . . . . Parts Scanalyzed . | . . . . Part Schematics Acquired . | . . . . Parts Damaged . | . . . . Bothacking | -11 -10 -10 -9 ------------ Run | Yrd Mat Min Mat Used RIF Installer . | . . . . Robots Hacked . | . . . . Non-combat . | . . . . Combat . | . . . . Robot Hacks Applied . | . . . . Relay Couplers Released . | . . . . Fabnet Peak Effective % . | . . . . Robots Rewired . | . . . . Allies Hacked . | . . . . Hacks Repelled . | . . . . Allies | -11 -10 -10 -9 -------- Run | Yrd Mat Min Mat Total Allies . | . . . . Largest Group . | . . . . Highest-Rated Group . | . . . . Highest-Rated Ally . | . . . . Total Orders . | . . . . Ally Attacks . | . . . . Total Damage . | . . . . Kills . | . . . . Allies Corrupted . | . . . . Allies Melted . | . . . . Intel | -11 -10 -10 -9 ------- Run | Yrd Mat Min Mat Robot Analysis Total . | . . . . Derelict Logs Recovered 2 | . . 2 . Drone Launches . | . . . . Drone Recoveries . | . . . . Exploration | -11 -10 -10 -9 ------------- Run | Yrd Mat Min Mat Turns Passed 1504 | 66 407 661 370 Spaces Moved 709 | 53 182 333 141 Core 12 | 12 . . . Treads 81 | . 81 . . Legs 494 | . 20 333 141 Wheels 122 | 41 81 . . Hover . | . . . . Flight . | . . . . Fastest Speed 50 | 50 90 190 190 Average Speed 168 | 88 134 190 190 Slowest Speed 260 | 100 240 190 260 Overloaded Moves . | . . . . Propulsion Burnouts . | . . . . Robots Hopped . | . . . . Cave-ins Triggered . | . . . . Exploration Rate (%) 33 | 4 38 77 15 Regions Visited 3 Branch Regions 1 Pre-discovered Areas 1 | . . 1 . Known Exits Taken . | . . . . Unknown Exits Taken 3 | 1 1 1 . Scrap Searched 1 | . . 1 . Spaces Dug . | . . . . Terrain Destroyed 146 | . 66 23 57 Melee . | . . . . Projectile . | . . . . AOE 146 | . 66 23 57 Terrain Rammed . | . . . . Walls Destroyed . | . . . . Machines Disabled . | . . . . Actions | -11 -10 -10 -9 --------- Run | Yrd Mat Min Mat Total 894 | 71 271 348 204 Wait 47 | . 25 5 17 Move 706 | 52 181 332 141 Hop . | . . . . Pick Up 27 | 12 8 . 7 Fast Attach . | . . . . Attach 19 | 6 6 2 5 Detach . | . . . . Swap 16 | 1 7 1 7 Drop 3 | . 2 . 1 Fire 76 | . 42 8 26 Melee . | . . . . Ram . | . . . . Kick . | . . . . Crush . | . . . . Escape Stasis . | . . . . Rewire . | . . . . Trap . | . . . . Miscellaneous . | . . . . Route ------- -11/Scrapyard -10/Materials -10/Mines -9/Materials (discovered 1 exit: Mat) History --------- Turn | Location | Event 11 | -11/Scrapyard | Discovered new exit (range 15) 67 | -11/Scrapyard | Entered Materials 239 | -10/Materials | Lost 3 parts (1p1n1w) 268 | -10/Materials | Discovered new exit (range 16) 320 | -10/Materials | Build established: Mutant 474 | -10/Materials | Entered Mines 628 | -10/Mines | Found a hidden stash of uninstalled traps 651 | -10/Mines | Learned 2 Materials zone layouts 669 | -10/Mines | Core integrity fell below 50% 740 | -10/Mines | Discovered new exit (range 16) 1135 | -10/Mines | Entered Materials 1135 | -9/Materials | Evolved 2 slots: Utility x2 1136 | -9/Materials | Identified exit to Materials 1505 | -9/Materials | Self-destructed Last Messages --------------- U-05 Engineer destroyed. ALERT: Construction progress impeded, dispatching reinforcements to local area. ALERT: Hostiles spotted, dispatching reinforcements to Terminal M012. U-05 Engineer destroyed. S-10 Pest destroyed. K-01 Serf collects debris. R-06 Scavenger collects Wheel. Particle Gun destroyed. Aluminum Leg destroyed. G-34 Mercenary destroyed. Processing Tank disabled. G-34 Mercenary destroyed. Hvy. Assault Rifle destroyed. Lgt. Nuclear Core destroyed. L-31 Rogue destroyed. Rocket Launcher destroyed. Destroyed Rocket Launcher. Assault Rifle destroyed. Map ----- +----------------------------------------------------+ | ?????????????????????????????????????????????????? | | ?????????????????????????????????????????????????? | | ?????????????????????????????????????????????????? | | ?????????????????????????????????????????????????? | | ?????????????????????????????????????????????????? | | ?????????????????????????????????????????????????? | | ?????????????????????????????????????????????????? | | ?????????????????????????????????????????????????? | | ?????????????????????????????????????????????????? | | ??????????????????"??????????????????????????????? | | ??????????????????" ??????????? ?????????????????? | | ?????????????????? ??????????? ?????????????????? | | ?????????????????? ??????????? ?????????????????? | | ????????????????###+#?????????? ?????????????????? | | ????????????????? ?????????? ?????????????????? | | ?????????????????# #????????? ?????????????????? | | ?????????????????# #????????? ?????????????????? | | ?????????????????# #????????? ?????????????????? | | ?????????????????# #????????# #????????????????? | | ?????????????????# ##########+#????????????????? | | ????????????????## ## #????????????????? | | ????############# * #????????????????? | | ??? % " #????????????????? | | ??? g T = #????????????????? | | ??? g % g #????????????????? | | ????????######### @ % #????????????????? | | ????????????????## ## #???????????? ?? | | ????????????????# ## g #??????????? #? | | ??????????????== # # #+##### #? | | ?????????????#== == ## ###### "T" ? #? | | ?????????????#!! |%*?###????# ##+######??? #? | | # ##!! #?# # #??# #? | | # ##== """#?# # #??# #? | | # ##== """#?# # "" #??# ?? | | # #### """#?# # """#??## #?? | | ###### ####?? =* #?# # S"#???# #?? | | #????######### % [ % #?# # #???# #?? | | #????# =#########+########???# #?? | | < #????# """" # #??????# #??### ### | | #????# """" ## ######### #??# # | | ###????# """" # !! """ # #??# # | | ???????# # !! "T" # #### # | | ???????# """" + ! + + # | | ???????# """" # # #### # | | ???????# """" # # #??# # | | ???????# # """ # #??# # | | ???????########## """ # #??######### | | ????????????????# """ ##########??## = | | ????????????????# ################## | | ????????????????# =% * | +----------------------------------------------------+ Best States ------------- Heat Dissipation 38 Energy Generation 14 Energy Capacity 250 Matter Stores 300 Matter Capacity 300 Sight Range 18 Terrain Scan Density 10 Evasion (%) 42 Recoil Reduction 2 Item Schematics ----------------- None Robot Schematics ------------------ None Fabricated ------------ Nothing Alien Tech Used ----------------- None Achievements -------------- None Challenges ------------ None Game ------ Seed StealthSurgeRifle Manual? 0 Play Time 00:13:38 Cumulative 5.7 hours Start 2024.05.27 @ 00:45:29 End 2024.05.27 @ 00:56:55 Sessions 1 Manual Loads 0 Difficulty Rogue Special Mode None Game No. 16 Rogue 16 Adventurer 0 Explorer 0 Win Type - Total 0 Types 0/0/0/0/0/0/0/0/0 Lore% 6 Gallery% 16 Achievement% 12 Wizard Run 0 Options --------- Layout 1 ASCII 0 Keyboard 0 Movement Mouse Keybinds 0 Fullscreen 1 Font 24/Smallcaps Map View 50x35 Zoom Use 0% Tactical HUD 0 Map Filters NONE Filters NONE Steam 1 RUN: 548fc329-8f75-475c-b08d-eea4a42ab61c